fUST/lending_fUST_20260112
["ID","MTS","AMOUNT","RATE_DAILY","PERIOD"]
[401382934,1768169447898,-181.573329,0.00022,2]
[401382936,1768169447908,-151.0,0.00022,2]
[401382938,1768169447916,-151.0,0.00022,2]
[401382939,1768169447925,-151.0,0.00022,2]
[401382942,1768169447935,-151.000003,0.00022,2]
[401382944,1768169447944,-177.552931,0.00022,2]
[401382945,1768169447953,-177.552931,0.00022,2]
[401382947,1768169447962,-177.552931,0.00022,2]
[401382949,1768169447971,-177.552931,0.00022,2]
[401382951,1768169447981,-216.477355,0.00022,2]
[401382953,1768169447991,-216.477355,0.00022,2]
[401382955,1768169448000,-216.477355,0.00022,2]
[401382958,1768169448009,-216.477355,0.00022,2]
[401382959,1768169448019,-259.948193,0.00022,2]
[401382961,1768169448028,-259.948193,0.00022,2]
[401382963,1768169448037,-259.948193,0.00022,2]
[401382965,1768169448046,-259.948193,0.00022,2]
[401382967,1768169448054,-2948.424456,0.00022,2]
[401382969,1768169448063,-2948.424456,0.00022,2]
[401382971,1768169448072,-2948.424456,0.00022,2]
[401382973,1768169448084,-2948.424456,0.00022,2]
[401382975,1768169448092,-151.0,0.00022,2]
[401382977,1768169448101,-151.0,0.00022,2]
[401382979,1768169448111,-1175.971694,0.00022,2]
[401382981,1768169448120,-151.0,0.00022,2]
[401382983,1768169448129,-151.0,0.00022,2]
[401382986,1768169448138,-151.0,0.00022,2]
[401382987,1768169448147,-1018.853921,0.00022,2]
[401382990,1768169448157,-1018.853921,0.00022,2]
[401382992,1768169448166,-582.663486,0.00022,2]
[401382994,1768169448176,-1018.853921,0.00022,2]
[401382996,1768169448186,-582.663486,0.00022,2]
[401382997,1768169448196,-1018.853921,0.00022,2]
[401383000,1768169448206,-582.663486,0.00022,2]
[401383002,1768169448216,-582.663486,0.00022,2]
[401383004,1768169448225,-151.0,0.000221,8]
[401383006,1768169448234,-771.1,0.00022137,2]
[401383007,1768169448244,-155.5739919,0.00022181,5]
[401383009,1768169448253,-32701.7,0.000223,2]
[401383012,1768169448263,-151.0,0.000223,2]
[401383013,1768169448273,-151.0,0.000223,2]
[401383016,1768169448283,-277.4352,0.000223,2]
[401383018,1768169448292,-277.4352,0.000223,2]
[401383020,1768169448301,-277.4352,0.000223,2]
[401383022,1768169448310,-277.4352,0.000223,2]
[401383024,1768169448319,-199.159535,0.000223,2]
[401383025,1768169448329,-199.159535,0.000223,2]
[401383027,1768169448341,-199.159535,0.000223,2]
[401383029,1768169448351,-199.159535,0.000223,2]
[401383032,1768169448361,-399.505207,0.000223,2]
[401383034,1768169448370,-399.505207,0.000223,2]
[401383036,1768169448379,-399.505207,0.000223,2]
[401383038,1768169448389,-399.505207,0.000223,2]
[401383040,1768169448399,-151.0,0.000223,2]
[401383042,1768169448409,-2570.33183704,0.00022401,2]
[401383044,1768169448418,-4898.92616056,0.00022435,2]
[401383046,1768169448427,-300.0,0.00022466,2]
[401383048,1768169448436,-611.55196731,0.00022656,12]
[401383050,1768169448446,-2570.33183704,0.00022688,2]
[401383052,1768169448455,-151.0,0.00022783,2]
[401383054,1768169448464,-155.5739919,0.00022867,5]
[401383056,1768169448473,-221.765393,0.00022931,2]
[401383058,1768169448483,-189.468115,0.00022931,2]
[401383060,1768169448493,-2570.33183704,0.00022965,2]
[401383062,1768169448503,-450.0,0.00023014,2]
[401383064,1768169448512,-151.0,0.0002302,2]
[401383066,1768169448521,-151.0,0.0002302,2]
[401383068,1768169448531,-151.0,0.0002302,2]
[401383070,1768169448541,-700.258706,0.0002302,2]
[401383072,1768169448551,-700.258706,0.0002302,2]
[401383074,1768169448560,-700.258706,0.0002302,2]
[401383076,1768169448569,-700.258706,0.0002302,2]
[401383078,1768169448579,-160.32854,0.0002302,2]
[401383080,1768169448590,-306.783496,0.0002302,2]
[401383082,1768169448603,-306.783496,0.0002302,2]
[401383084,1768169448612,-306.783496,0.0002302,2]
[401383086,1768169448621,-306.783496,0.0002302,2]
[401383088,1768169448631,-396.005915,0.0002302,2]
[401383090,1768169448640,-396.005915,0.0002302,2]
[401383092,1768169448650,-396.005915,0.0002302,2]
[401383094,1768169448659,-396.005915,0.0002302,2]
[401383096,1768169448669,-323.453426,0.0002302,2]
[401383098,1768169448679,-323.453426,0.0002302,2]
[401383100,1768169448688,-151.0,0.0002302,2]
[401383102,1768169448697,-323.453426,0.0002302,2]
[401383104,1768169448707,-323.453426,0.0002302,2]
[401383106,1768169448716,-151.0,0.0002302,2]
[401383109,1768169448727,-503.453676,0.0002302,2]
[401383110,1768169448736,-503.453676,0.0002302,2]
[401383112,1768169448746,-503.453676,0.0002302,2]
[401383114,1768169448756,-503.453676,0.0002302,2]
[401383116,1768169448765,-151.0,0.0002302,2]
[401383118,1768169448775,-186.589118,0.0002302,2]
[401383120,1768169448784,-151.0,0.0002302,2]
[401383122,1768169448795,-261.452857,0.0002302,2]
[401383124,1768169448804,-161.662681,0.0002302,2]
[401383126,1768169448813,-151.0,0.0002302,2]
[401383129,1768169448823,-189.77985,0.0002302,2]
[401383131,1768169448832,-151.0,0.0002302,2]
[401383133,1768169448842,-189.77985,0.0002302,2]
[401383135,1768169448851,-189.77985,0.0002302,2]
[401383137,1768169448860,-189.779842,0.0002302,2]
[401383139,1768169448870,-319.326659,0.0002302,2]
[401383141,1768169448879,-319.326659,0.0002302,2]
[401383143,1768169448888,-151.0,0.0002302,2]
[401383145,1768169448898,-319.326659,0.0002302,2]
[401383147,1768169448907,-151.0,0.0002302,2]
[401383149,1768169448916,-319.32666,0.0002302,2]
[401383151,1768169448926,-151.0,0.0002302,2]
[401383153,1768169448935,-151.0,0.0002302,2]
[401383155,1768169448944,-1311.07653,0.0002302,2]
[401383157,1768169448955,-1311.07653,0.0002302,2]
[401383159,1768169448964,-1311.07653,0.0002302,2]
[401383161,1768169448974,-1311.07654,0.0002302,2]
[401383163,1768169448984,-151.0,0.0002302,2]
[401383165,1768169448993,-168.350881,0.0002302,2]
[401383167,1768169449003,-151.0,0.0002302,2]
[401383169,1768169449012,-151.0,0.0002302,2]
[401383171,1768169449022,-151.0,0.0002302,2]
[401383173,1768169449032,-151.0,0.0002302,2]
[401383175,1768169449042,-151.0,0.0002302,2]
[401383177,1768169449051,-151.0,0.0002302,2]
[401383179,1768169449060,-151.0,0.0002302,2]
[401383181,1768169449070,-151.0,0.0002302,2]
[401383183,1768169449079,-151.0,0.0002302,2]
[401383185,1768169449088,-151.0,0.0002302,2]
[401383187,1768169449098,-151.0,0.0002302,2]
[401383189,1768169449109,-151.0,0.0002302,2]
[401383191,1768169449118,-151.0,0.0002302,2]
[401383193,1768169449128,-151.0,0.0002302,2]
[401383195,1768169449137,-151.0,0.0002302,2]
[401383196,1768169449145,-151.0,0.0002302,2]
[401383198,1768169449154,-151.0,0.0002302,2]
[401383199,1768169449164,-151.0,0.0002302,2]
[401383201,1768169449173,-151.0,0.0002302,2]
[401383203,1768169449182,-151.0,0.0002302,2]
[401383205,1768169449193,-151.0,0.0002302,2]
[401383207,1768169449203,-151.0,0.0002302,2]
[401383209,1768169449213,-151.0,0.0002302,2]
[401383211,1768169449222,-151.0,0.0002302,2]
[401383213,1768169449232,-151.0,0.0002302,2]
[401383215,1768169449242,-151.0,0.0002302,2]
[401383217,1768169449251,-151.0,0.0002302,2]
[401383219,1768169449261,-151.0,0.0002302,2]
[401383221,1768169449271,-151.0,0.0002302,2]
[401383223,1768169449282,-151.0,0.0002302,2]
[401383225,1768169449291,-151.0,0.0002302,2]
[401383227,1768169449302,-151.0,0.0002302,2]
[401383229,1768169449311,-30000.0,0.0002302,2]
[401383231,1768169449321,-151.0,0.0002302,2]
[401383233,1768169449331,-151.0,0.0002302,2]
[401383235,1768169449340,-151.0,0.0002302,2]
[401383237,1768169449350,-151.0,0.0002302,2]
[401383240,1768169449360,-151.0,0.0002302,2]
[401383241,1768169449369,-151.0,0.0002302,2]
[401383244,1768169449379,-151.0,0.0002302,2]
[401383245,1768169449389,-151.0,0.0002302,2]
[401383248,1768169449399,-151.0,0.0002302,2]
[401383250,1768169449409,-151.0,0.0002302,2]
[401383252,1768169449419,-2030.29667201,0.0002302,2]
[401383253,1768169449428,-151.0,0.0002302,2]
[401383256,1768169449437,-156.587,0.0002302,2]
[401383258,1768169449447,-152.09143049,0.0002302,2]
[401383260,1768169449457,-162.99,0.000231,7]
[401383262,1768169449466,-164.08,0.000231,7]
[401383263,1768169449476,-1000.0,0.00023149,10]
[401383265,1768169449485,-1000.0,0.00023149,10]
[401383267,1768169449495,-1000.0,0.00023149,10]
[401383270,1768169449505,-2570.33183704,0.00023272,2]
[401383271,1768169449514,-772.06450369,0.00023281,2]
[401383274,1768169449524,-3359.23,0.000233,14]
[401383276,1768169449533,-771.1,0.00023389,2]
[401383278,1768169449543,-151.0,0.000235,9]
[401383279,1768169449555,-2570.33183704,0.0002351,2]
[401383281,1768169449564,-431.088,0.00023513,4]
[401383283,1768169449574,-178.052,0.00023513,4]
[401383285,1768169449584,-600.0,0.00023562,2]
[401383287,1768169449597,-216.477355,0.00023568,2]
[401383289,1768169449610,-216.477355,0.00023568,2]
[401383292,1768169449619,-216.477355,0.00023568,2]
[401383294,1768169449629,-216.477347,0.00023568,2]
[401383295,1768169449640,-259.948193,0.00023568,2]
[401383297,1768169449649,-259.948193,0.00023568,2]
[401383299,1768169449659,-259.948193,0.00023568,2]
[401383301,1768169449669,-259.94819,0.00023568,2]
[401383303,1768169449679,-2948.424456,0.00023568,2]
[401383305,1768169449688,-2948.424456,0.00023568,2]
[401383307,1768169449697,-2948.424456,0.00023568,2]
[401383309,1768169449707,-2948.424446,0.00023568,2]
[401383311,1768169449717,-151.0,0.00023568,2]
[401383313,1768169449726,-227.107795,0.00023568,2]
[401383315,1768169449736,-1175.971704,0.00023568,2]
[401383317,1768169449745,-151.0,0.00023568,2]
[401383319,1768169449755,-151.0,0.00023568,2]
[401383321,1768169449765,-151.0,0.00023568,2]
[401383323,1768169449775,-1018.853921,0.00023568,2]
[401383325,1768169449785,-1018.853921,0.00023568,2]
[401383327,1768169449794,-582.663486,0.00023568,2]
[401383329,1768169449804,-1018.853921,0.00023568,2]
[401383331,1768169449813,-582.663486,0.00023568,2]
[401383333,1768169449822,-1018.853919,0.00023568,2]
[401383335,1768169449831,-582.663486,0.00023568,2]
[401383337,1768169449841,-582.663496,0.00023568,2]
[401383339,1768169449851,-31110.0,0.00023568,2]
[401383341,1768169449861,-155.57399191,0.00023581,5]
[401383343,1768169449870,-1000.0,0.00023654,5]
[401383345,1768169449879,-2570.33183704,0.00023703,2]
[401383347,1768169449889,-262.406,0.00023706,2]
[401383349,1768169449898,-2164.487,0.00023706,2]
[401383350,1768169449907,-1366.0,0.00023706,2]
[401383362,1768169450003,-628.0,0.00023706,2]
[401383364,1768169450014,-417.0,0.00023706,2]
[401383366,1768169450024,-417.0,0.00023706,2]
[401383368,1768169450033,-743.119,0.00023706,2]
[401383370,1768169450044,-197.346,0.00023706,2]
[401383372,1768169450053,-171.47,0.00023803,2]
[401383374,1768169450063,-235.0,0.00023813,2]
[401383376,1768169450073,-611.55196731,0.00023859,13]
[401383378,1768169450082,-2263.25436862,0.0002387,2]
[401383380,1768169450092,-800.0,0.00023896,2]
[401383382,1768169450101,-154.39,0.000239,2]
[401383384,1768169450111,-155.69,0.000239,2]
[401383386,1768169450120,-177.552931,0.00023927,2]
[401383388,1768169450129,-177.552931,0.00023927,2]
[401383390,1768169450139,-177.552931,0.00023927,2]
[401383392,1768169450148,-177.552935,0.00023927,2]
[401383394,1768169450157,-10000.0,0.00023927,2]
[401383396,1768169450167,-2570.33183704,0.00023965,2]
[401383398,1768169450176,-204.0,0.00023973,11]
[401383400,1768169450186,-800.0,0.00024016,2]
[401383402,1768169450195,-153.659043,0.00024027,2]
[401383404,1768169450205,-800.0,0.00024064,2]
[401383406,1768169450214,-1923.0,0.00024103,2]
[401383408,1768169450223,-750.0,0.0002411,2]
[401383410,1768169450233,-32261.07,0.00024116,2]
[401383412,1768169450243,-2570.33183704,0.00024135,2]
[401383414,1768169450251,-11773.83379711,0.000242,2]
[401383416,1768169450260,-151.0,0.000242,2]
[401383417,1768169450269,-1923.0,0.00024219,2]
[401383419,1768169450280,-800.0,0.00024219,2]
[401383421,1768169450289,-800.0,0.00024285,2]
[401383423,1768169450299,-520.19520858,0.00024288,2]
[401383425,1768169450308,-167.64,0.000243,7]
[401383427,1768169450317,-32701.7,0.000243,2]
[401383429,1768169450327,-151.0,0.000243,2]
[401383431,1768169450336,-199.159535,0.000243,2]
[401383433,1768169450346,-199.159535,0.000243,2]
[401383435,1768169450356,-199.159535,0.000243,2]
[401383437,1768169450365,-199.159544,0.000243,2]
[401383439,1768169450374,-399.505207,0.000243,2]
[401383441,1768169450384,-399.505207,0.000243,2]
[401383443,1768169450394,-399.505207,0.000243,2]
[401383445,1768169450404,-399.505202,0.000243,2]
[401383447,1768169450414,-800.0,0.00024308,2]
[401383449,1768169450423,-155.5739919,0.0002431,5]
[401383451,1768169450433,-800.0,0.00024334,2]
[401383453,1768169450443,-899.319816,0.00024339,2]
[401383455,1768169450453,-800.0,0.00024339,2]
[401383457,1768169450463,-1923.0,0.0002434,2]
[401383459,1768169450474,-800.0,0.00024374,2]
[401383461,1768169450483,-800.0,0.00024379,2]
[401383463,1768169450492,-800.0,0.00024386,2]
[401383465,1768169450501,-151.0,0.00024387,2]
[401383467,1768169450510,-151.0,0.00024387,2]
[401383469,1768169450520,-277.4352,0.00024387,2]
[401383471,1768169450528,-277.4352,0.00024387,2]
[401383473,1768169450538,-277.4352,0.00024387,2]
[401383475,1768169450547,-277.4352,0.00024387,2]
[401383477,1768169450557,-396.005915,0.00024387,2]
[401383479,1768169450566,-396.005915,0.00024387,2]
[401383481,1768169450575,-396.005915,0.00024387,2]
[401383483,1768169450584,-396.005909,0.00024387,2]
[401383485,1768169450598,-323.453426,0.00024387,2]
[401383487,1768169450608,-323.453426,0.00024387,2]
[401383489,1768169450617,-151.0,0.00024387,2]
[401383491,1768169450626,-323.453426,0.00024387,2]
[401383493,1768169450636,-323.453427,0.00024387,2]
[401383495,1768169450645,-503.453676,0.00024387,2]
[401383497,1768169450654,-503.453676,0.00024387,2]
[401383499,1768169450663,-503.453676,0.00024387,2]
[401383501,1768169450672,-503.453675,0.00024387,2]
[401383503,1768169450681,-347.0,0.00024387,3]
[401383505,1768169450690,-347.0,0.00024387,3]
[401383507,1768169450699,-347.0,0.00024387,3]
[401383509,1768169450708,-166.0,0.00024387,3]
[401383511,1768169450717,-347.0,0.00024387,3]
[401383512,1768169450726,-347.0,0.00024387,3]
[401383514,1768169450735,-151.0,0.00024387,3]
[401383516,1768169450744,-347.0,0.00024387,3]
[401383518,1768169450753,-151.0,0.00024387,3]
[401383520,1768169450763,-336.0,0.00024387,3]
[401383522,1768169450773,-347.0,0.00024387,3]
[401383523,1768169450782,-151.0,0.00024387,3]
[401383524,1768169450791,-151.0,0.00024387,3]
[401383525,1768169450800,-336.0,0.00024387,3]
[401383526,1768169450809,-151.0,0.00024387,3]
[401383527,1768169450818,-336.0,0.00024387,3]
[401383528,1768169450827,-336.0,0.00024387,3]
[401383529,1768169450836,-336.0,0.00024387,3]
[401383530,1768169450845,-336.0,0.00024387,3]
[401383531,1768169450853,-336.0,0.00024387,3]
[401383532,1768169450862,-336.0,0.00024387,3]
[401383533,1768169450871,-336.0,0.00024387,3]
[401383534,1768169450880,-336.0,0.00024387,3]
[401383535,1768169450890,-336.0,0.00024387,3]
[401383536,1768169450898,-151.0,0.00024387,3]
[401383537,1768169450907,-302.0,0.00024387,3]
[401383538,1768169450916,-800.0,0.00024389,2]
[401383539,1768169450925,-9694.40580394,0.00024402,2]
[401383540,1768169450934,-151.0,0.00024402,2]
[401383541,1768169450943,-151.0,0.00024402,2]
[401383542,1768169450952,-151.0,0.00024402,2]
[401383543,1768169450960,-151.0,0.00024402,2]
[401383544,1768169450969,-800.0,0.00024405,2]
[401383545,1768169450978,-800.0,0.00024407,2]
[401383546,1768169450987,-800.0,0.00024407,2]
[401383547,1768169450996,-800.0,0.00024417,2]
[401383548,1768169451005,-800.0,0.00024483,2]
[401383549,1768169451013,-152.48093155,0.00024521,2]
[401383550,1768169451022,-171.65605742,0.00024521,2]
[401383551,1768169451031,-3286.25908215,0.00024525,7]
[401383552,1768169451040,-2570.33183705,0.00024525,2]
[401383553,1768169451049,-800.0,0.00024567,2]
[401383554,1768169451057,-800.0,0.00024616,2]
[401383555,1768169451066,-771.1,0.0002464,2]
[401383556,1768169451075,-800.0,0.00024651,2]
[401383557,1768169451084,-170.4151868,0.00024657,2]
[401383558,1768169451093,-24168.4078519,0.00024657,2]
[401383559,1768169451102,-29712.3031044,0.00024657,2]
[401383560,1768169451111,-951.8864354,0.00024657,2]
[401383561,1768169451119,-151.0,0.00024657,2]
[401383562,1768169451128,-151.0,0.00024657,2]
[401383563,1768169451137,-151.0,0.00024657,2]
[401383564,1768169451146,-700.258706,0.00024657,2]
[401383565,1768169451155,-700.258706,0.00024657,2]
[401383566,1768169451163,-700.258706,0.00024657,2]
[401383567,1768169451172,-700.258706,0.00024657,2]
[401383568,1768169451181,-306.783496,0.00024657,2]
[401383569,1768169451190,-306.783496,0.00024657,2]
[401383570,1768169451199,-306.783496,0.00024657,2]
[401383571,1768169451208,-306.783496,0.00024657,2]
[401383572,1768169451217,-713.9148265,0.00024657,2]
[401383573,1768169451226,-6403.0780291,0.00024657,2]
[401383574,1768169451235,-2141.7444798,0.00024657,2]
[401383575,1768169451243,-900.0,0.00024658,2]
[401383576,1768169451253,-380.0,0.00024658,2]
[401383577,1768169451262,-200.0,0.00024658,2]
[401383578,1768169451271,-321.052637,0.00024658,7]
[401383579,1768169451280,-321.052637,0.00024658,7]
[401383580,1768169451289,-321.052637,0.00024658,7]
[401383581,1768169451298,-151.0,0.00024658,7]
[401383582,1768169451307,-500.0,0.00024658,2]
[401383583,1768169451317,-33454.72959,0.00024664,2]
[401383584,1768169451326,-800.0,0.00024665,2]
[401383585,1768169451335,-800.0,0.00024681,2]
[401383586,1768169451344,-151.0,0.00024699,3]
[401383587,1768169451354,-151.0,0.00024699,3]
[401383588,1768169451363,-151.0,0.00024699,3]
[401383589,1768169451372,-250.0,0.00024699,3]
[401383590,1768169451382,-151.0,0.00024699,3]
[401383591,1768169451392,-496.47127164,0.00024699,3]
[401383592,1768169451403,-250.0,0.00024699,3]
[401383593,1768169451412,-151.0,0.00024699,3]
[401383594,1768169451421,-151.0,0.00024699,3]
[401383595,1768169451430,-250.0,0.00024699,3]
[401383596,1768169451439,-514.84070869,0.00024699,3]
[401383597,1768169451448,-250.0,0.00024699,3]
[401383598,1768169451457,-250.0,0.00024699,3]
[401383599,1768169451466,-151.0,0.00024699,3]
[401383600,1768169451475,-151.0,0.00024699,3]
[401383601,1768169451484,-533.88981491,0.00024699,3]
[401383602,1768169451494,-500.0,0.00024699,3]
[401383603,1768169451503,-250.0,0.00024699,3]
[401383604,1768169451512,-250.0,0.00024699,3]
[401383605,1768169451521,-151.0,0.00024699,3]
[401383606,1768169451530,-151.0,0.00024699,3]
[401383607,1768169451539,-553.64373807,0.00024699,3]
[401383608,1768169451549,-500.0,0.00024699,3]
[401383609,1768169451559,-250.0,0.00024699,3]
[401383610,1768169451568,-250.0,0.00024699,3]
[401383611,1768169451577,-151.0,0.00024699,3]
[401383612,1768169451587,-151.0,0.00024699,3]
[401383614,1768169451600,-574.12855637,0.00024699,3]
[401383616,1768169451610,-500.0,0.00024699,3]
[401383617,1768169451619,-250.0,0.00024699,3]
[401383618,1768169451628,-265.04542702,0.00024699,3]
[401383619,1768169451638,-250.0,0.00024699,3]
[401383620,1768169451648,-151.0,0.00024699,3]
[401383621,1768169451657,-151.0,0.00024699,3]
[401383622,1768169451666,-595.37131296,0.00024699,3]
[401383623,1768169451675,-500.0,0.00024699,3]
[401383624,1768169451685,-250.0,0.00024699,3]
[401383625,1768169451694,-250.0,0.00024699,3]
[401383626,1768169451703,-151.0,0.00024699,3]
[401383627,1768169451712,-151.0,0.00024699,3]
[401383628,1768169451722,-617.40005154,0.00024699,3]
[401383629,1768169451732,-500.0,0.00024699,3]
[401383630,1768169451742,-250.0,0.00024699,3]
[401383631,1768169451751,-250.0,0.00024699,3]
[401383632,1768169451761,-241.8234162,0.00024699,3]
[401383633,1768169451770,-151.0,0.00024699,3]
[401383634,1768169451780,-640.24385345,0.00024699,3]
[401383635,1768169451789,-500.0,0.00024699,3]
[401383636,1768169451798,-250.0,0.00024699,3]
[401383637,1768169451809,-250.0,0.00024699,3]
[401383638,1768169451818,-151.0,0.00024699,3]
[401383639,1768169451827,-663.93287602,0.00024699,3]
[401383640,1768169451919,-500.0,0.00024699,3]
[401383641,1768169451929,-2398.4119403,0.00024699,3]
[401383642,1768169451938,-250.0,0.00024699,3]
[401383643,1768169451947,-250.0,0.00024699,3]
[401383644,1768169451956,-151.0,0.00024699,3]
[401383645,1768169451965,-688.49839244,0.00024699,3]
[401383646,1768169451974,-500.0,0.00024699,3]
[401383647,1768169451984,-2487.15318209,0.00024699,3]
[401383648,1768169451993,-252.94566259,0.00024699,3]
[401383649,1768169452003,-250.0,0.00024699,3]
[401383650,1768169452013,-151.0,0.00024699,3]
[401383651,1768169452023,-713.97283296,0.00024699,3]
[401383652,1768169452032,-500.0,0.00024699,3]
[401383653,1768169452042,-2579.17784983,0.00024699,3]
[401383654,1768169452051,-250.0,0.00024699,3]
[401383655,1768169452060,-152.53645226,0.00024699,3]
[401383657,1768169452070,-740.38982778,0.00024699,3]
[401383659,1768169452079,-500.0,0.00024699,3]
[401383661,1768169452087,-250.0,0.00024699,3]
[401383662,1768169452097,-767.7842514,0.00024699,3]
[401383664,1768169452106,-500.0,0.00024699,3]
[401383667,1768169452116,-2674.60743027,0.00024699,3]
[401383668,1768169452125,-250.0,0.00024699,3]
[401383671,1768169452134,-796.19226871,0.00024699,3]
[401383673,1768169452143,-500.0,0.00024699,3]
[401383674,1768169452152,-2773.56790519,0.00024699,3]
[401383676,1768169452161,-250.0,0.00024699,3]
[401383678,1768169452170,-825.65138265,0.00024699,3]
[401383680,1768169452179,-500.0,0.00024699,3]
[401383682,1768169452188,-250.0,0.00024699,3]
[401383684,1768169452198,-2876.18991768,0.00024699,3]
[401383686,1768169452207,-500.0,0.00024699,3]
[401383688,1768169452216,-2982.60894464,0.00024699,3]
[401383690,1768169452225,-500.0,0.00024699,3]
[401383691,1768169452236,-3092.96547559,0.00024699,3]
[401383692,1768169452245,-151.0,0.00024699,3]
[401383693,1768169452254,-3207.40519818,0.00024699,3]
[401383694,1768169452263,-151.0,0.00024699,3]
[401383695,1768169452273,-3326.07919052,0.00024699,3]
[401383696,1768169452282,-151.0,0.00024699,3]
[401383697,1768169452291,-151.0,0.00024699,3]
[401383698,1768169452301,-3449.14412057,0.00024699,3]
[401383699,1768169452310,-151.0,0.00024699,3]
[401383700,1768169452319,-3576.76245303,0.00024699,3]
[401383701,1768169452328,-151.0,0.00024699,3]
[401383703,1768169452337,-151.0,0.00024699,3]
[401383705,1768169452347,-3709.10266379,0.00024699,3]
[401383707,1768169452356,-296.59935167,0.00024699,3]
[401383709,1768169452365,-151.0,0.00024699,3]
[401383711,1768169452374,-3846.33946235,0.00024699,3]
[401383713,1768169452383,-151.0,0.00024699,3]
[401383714,1768169452392,-3988.65402246,0.00024699,3]
[401383715,1768169452401,-151.0,0.00024699,3]
[401383717,1768169452410,-151.0,0.00024699,3]
[401383719,1768169452419,-250.0,0.00024699,3]
[401383720,1768169452428,-151.0,0.00024699,3]
[401383722,1768169452437,-250.0,0.00024699,3]
[401383724,1768169452447,-151.0,0.00024699,3]
[401383726,1768169452456,-151.0,0.00024699,3]
[401383727,1768169452465,-151.0,0.00024699,3]
[401383729,1768169452474,-151.0,0.00024699,3]
[401383731,1768169452482,-151.0,0.000247,7]
[401383733,1768169452491,-162.881798,0.000247,7]
[401383734,1768169452500,-277.4352,0.000247,7]
[401383735,1768169452509,-277.4352,0.000247,7]
[401383736,1768169452518,-277.4352,0.000247,7]
[401383738,1768169452529,-277.4352,0.000247,7]
[401383740,1768169452539,-778.0,0.000247,2]
[401383742,1768169452548,-71428.6,0.000247,3]
[401383744,1768169452558,-800.0,0.00024704,2]
[401383746,1768169452567,-800.0,0.00024733,2]
[401383747,1768169452576,-800.0,0.00024755,2]
[401383749,1768169452585,-800.0,0.00024767,2]
[401383751,1768169452599,-499.3064886,0.00024773,2]
[401383752,1768169452608,-1997.2259544,0.00024773,2]
[401383754,1768169452617,-4493.75839741,0.00024773,2]
[401383756,1768169452626,-185.60993763,0.00024773,2]
[401383757,1768169452635,-742.43975051,0.00024773,2]
[401383758,1768169452644,-1670.48943864,0.00024773,2]
[401383759,1768169452654,-2969.75900204,0.00024773,2]
[401383761,1768169452663,-4640.24844068,0.00024773,2]
[401383762,1768169452672,-6681.95775458,0.00024773,2]
[401383764,1768169452680,-9094.88694373,0.00024773,2]
[401383766,1768169452689,-11879.03600814,0.00024773,2]
[401383768,1768169452698,-549.45861084,0.00024773,2]
[401383769,1768169452707,-2197.83444335,0.00024773,2]
[401383771,1768169452716,-4945.12749754,0.00024773,2]
[401383773,1768169452726,-8791.33777341,0.00024773,2]
[401383774,1768169452735,-1923.0,0.00024778,2]
[401383775,1768169452743,-200.0,0.00024795,2]
[401383776,1768169452753,-500.0,0.00024795,2]
[401383777,1768169452762,-1935.0,0.00024796,2]
[401383778,1768169452771,-1749.778716,0.000248,2]